Cogmind - Beta 13 @@@ ROGUE MODE // 2024.07.24 @ 12:25:38 Player: jagoly Result: Destroyed by W2-MHS(R) with Subdweller Laser Performance ------------- Evolutions (0) 0 Regions Visited (2) 400 Robots Destroyed (28) 140 Value Destroyed (721) 721 Prototype IDs (4) 80 Alien Tech Used (0) 0 Bonus (0) 0 TOTAL SCORE: 1341 Bonus ------- None Cogmind --------- Core Integrity 0/250 Matter 251/300 Energy 166/250 System Corruption 0% Temperature Cool (6) Movement Rolling (120) Ox2 Location -10/Subcaves Parts ------- > --- POWER (1) -------- Ion Engine > --- PROPULSION (2) --- Armored Wheel > --- UTILITY (2) ------ Heat Sink Large Storage Unit > --- WEAPON (2) ------- Barrage Gun > --- INVENTORY (15) --- Light Treads Armored Wheel Armored Wheel Armored Wheel Disposable Heat Sink Large Storage Unit Scrap Shield Battle Cannon Scrap Shield Fragment (49) Scrap Shield Fragment (49) Peak State ------------ > --- POWER ------------ Light Ion Engine > --- PROPULSION ------- Light Treads Armored Wheel > --- UTILITY ---------- Heat Sink Large Storage Unit > --- WEAPON ----------- Beam Rifle Beam Rifle > --- INVENTORY -------- Ion Engine Light Treads Armored Wheel Armored Wheel Armored Wheel Disposable Heat Sink Large Storage Unit Scrap Shield Beam Rifle Beam Rifle Scrap Shield Fragment [Rating: 12] Favorites ----------- Power Light Ion Engine Engine Light Ion Engine Propulsion Armored Wheel Treads Light Treads Leg Aluminum Leg Wheel Armored Wheel Utility Heat Sink Device Heat Sink Storage Large Storage Unit Processor Signal Interpreter Weapon Beam Rifle Energy Gun Beam Rifle Ballistic Gun Barrage Gun Ballistic Cannon Battle Cannon Build | -11 -10 -10 ------- Run | Yrd Mat Sub Slots Evolved . | . . . Power . | . . . Propulsion . | . . . Utility . | . . . Weapon . | . . . Parts Attached 30 | 6 16 8 Power 4 | 1 2 1 Engine 4 | 1 2 1 Core . | . . . Reactor . | . . . Propulsion 8 | 2 6 . Treads 1 | . 1 . Leg 6 | 2 4 . Wheel 1 | . 1 . Hover . | . . . Flight . | . . . Utility 9 | 1 6 2 Device 6 | . 4 2 Storage 2 | 1 1 . Processor 1 | . 1 . Hackware . | . . . Protection . | . . . Artifact . | . . . Weapon 9 | 2 2 5 Energy Gun 7 | 2 2 3 Energy Cannon . | . . . Ballistic Gun 1 | . . 1 Ballistic Cannon 1 | . . 1 Launcher . | . . . Special Weapon . | . . . Impact Weapon . | . . . Slashing Weapon . | . . . Piercing Weapon . | . . . Special Melee Weapon . | . . . Unidentified Prototypes . | . . . Parts Lost 8 | . 1 7 Power 2 | . 1 1 Propulsion 1 | . . 1 Utility 1 | . . 1 Weapon 4 | . . 4 Highest Loss Streak 4 | . 1 4 To Critical Strikes . | . . . Average Slot Usage (%) 97 | . 95 98 Engine 13 | . 13 14 Treads 11 | . 9 13 Leg 5 | . 8 . Wheel 11 | . 9 14 Device 12 | . 10 14 Storage 14 | . 14 14 Energy Gun 25 | . 27 22 Ballistic Cannon 2 | . . 5 Naked Turns . | . . . Heaviest Build 32 | 12 30 32 Greatest Support 20 | 20 20 20 Greatest Overweight (x) 2 | 1 2 2 Average Overweight (x) 1 | . 1 1 Largest Inventory Capacity 15 | 8 15 15 Average Capacity 13 | 6 12 15 Most Carried 15 | 3 10 15 Average Carried 10 | 2 8 13 Final Capacity 15 | 8 15 15 Final Carried 11 | 3 9 11 Class Distribution -------------------- 100% | Mutant Dominant Class ---------------- Mutant | -10/Materials Mutant | -10/Subcaves Resources | -11 -10 -10 ----------- Run | Yrd Mat Sub Matter Collected 445 | 191 199 55 Remotely . | . . . Salvage Created 1046 | . 852 194 Parts 50 | . 43 7 Haulers Intercepted 2 | . 2 . Recyclers Shooed 1 | . 1 . Parts Field Recycled . | . . . Retrieved Matter . | . . . Parts Self-Destructed . | . . . Prevented . | . . . Kills | -11 -10 -10 ------- Run | Yrd Mat Sub Combat Hostiles Destroyed 19 | . 15 4 Guns 18 | . 14 4 Classes Destroyed 10 | . 8 2 Worker 1 | . 1 . Tunneler 1 | . 1 . Hauler 2 | . 2 . Recycler 1 | . 1 . Operator 1 | . 1 . Watcher 3 | . 3 . Swarmer 3 | . 3 . Grunt 12 | . 12 . Sentry 1 | . . 1 Subdweller 3 | . . 3 Best Kill Streak 4 | . 4 2 Combat Bots Only 2 | . 2 2 Max Kills in Single Turn 1 | . 1 1 Gunslinging . | . . . Exploded . | . . . Melee . | . . . Uniques/NPCs Destroyed . | . . . Combat | -11 -10 -10 -------- Run | Yrd Mat Sub Hostile Shots Fired 95 | . 53 42 Missed 26 | . 16 10 Damage Taken 1084 | . 467 617 Core 258 | . 92 166 Absorbed by Shields . | . . . Core Remaining (%) 100 | 100 . . Volleys Fired 126 | . 75 51 Largest 2 | . 2 2 Hottest 112 | . 112 112 Shots Fired 222 | . 150 72 Gun 217 | . 150 67 Cannon 5 | . . 5 Launcher . | . . . Special . | . . . Kinetic 6 | . . 6 Thermal 215 | . 149 66 Explosive . | . . . Electromagnetic 1 | . 1 . Robot Hit Streak 21 | . 10 21 Robot Miss Streak 5 | . 5 2 Penetration Max . | . . . Secondary Targets 3 | . 3 . Max Gunslinging Chain 1 | . 1 . Shots Hit Robots 124 | . 82 42 Core Hits 41 | . 34 7 Critical Kills . | . . . Critical Parts Destroyed . | . . . Critical Strikes 8 | . 7 1 Burn 8 | . 7 1 Melee Attacks . | . . . Impact . | . . . Slashing . | . . . Piercing . | . . . Sneak Attacks . | . . . Combat Hostiles . | . . . Follow-up Attacks . | . . . Damage Inflicted 1621 | . 1238 383 Guns 1621 | . 1238 383 Cannons . | . . . Explosions . | . . . Melee . | . . . Ramming . | . . . Kinetic 21 | . . 21 Thermal 1584 | . 1222 362 Explosive . | . . . Electromagnetic 16 | . 16 . Impact . | . . . Slashing . | . . . Piercing . | . . . Highest Corruption . | . . . Average Corruption . | . . . Corruption Purged . | . . . Corruption Blocked . | . . . Overload Shots . | . . . Overflow Damage . | . . . Projectiles . | . . . Explosions . | . . . Melee . | . . . Knockbacks . | . . . Impact . | . . . Kinetic . | . . . Secondary . | . . . Self-Inflicted Damage . | . . . Shots . | . . . Rammed . | . . . Targets Rammed . | . . . Kicked . | . . . Crushed . | . . . Highest Temperature 278 | . 278 6 Average Temperature 85 | . 85 6 Received Heat Transfer 429 | . 222 207 Effects 1 | . 1 . Energy Bleed 1 | . 1 . Siege Activations . | . . . Robots Corrupted . | . . . Combat Hostiles . | . . . Parts Fried . | . . . Impact Corruptions . | . . . Robots Melted 2 | . 2 . Combat Hostiles 1 | . 1 . Parts Melted 7 | . 4 3 Heat Transferred 4662 | . 3663 999 Parts Sabotaged . | . . . Parts Stolen . | . . . Parts Stripped . | . . . Power Chain Reactions . | . . . Alert | -11 -10 -10 ------- Run | Yrd Mat Sub Peak Influence 263 | . 263 . Initial . | . . . Average 118 | . 125 . Maximum Alert Level 1 | . 1 . Low Security (%) 81 | 100 80 . Level 1 18 | . 19 . Level 2 . | . . . Level 3 . | . . . Level 4 . | . . . Level 5 . | . . . High Security . | . . . Max Security . | . . . Squads Dispatched 3 | . 3 . Investigation 1 | . 1 . Extermination . | . . . Reinforcement 2 | . 2 . Assault . | . . . Garrison . | . . . Intercept . | . . . Searches Triggered . | . . . Construction Impeded . | . . . Haulers Reinforced . | . . . Active Scanning Responses . | . . . Cargo Convoy Interrupts . | . . . Stealth | -11 -10 -10 --------- Run | Yrd Mat Sub Distress Signals 1 | . 1 . Communications Jammed . | . . . Distress Signals . | . . . Times Spotted 27 | . 22 5 Peak Tracking Total 5 | . 5 2 Tactical Retreats 2 | . 2 . Traps | -11 -10 -10 ------- Run | Yrd Mat Sub Traps Triggered 2 | . 2 . Indirectly . | . . . Trap Hack Attempts . | . . . Triggered . | . . . Disarmed . | . . . Reprogrammed . | . . . Reused . | . . . Traps Extracted . | . . . Installed . | . . . Triggered . | . . . Machines | -11 -10 -10 ---------- Run | Yrd Mat Sub Machines Disabled 1 | . 1 . Max in Single Turn 1 | . 1 . Machines Repaired . | . . . Machines Dismantled . | . . . Machines Sabotaged . | . . . Overloaded Fab Kills . | . . . Hacking | -11 -10 -10 --------- Run | Yrd Mat Sub Machines Accessed 8 | . 8 . Terminals 6 | . 6 . Fabricators . | . . . Repair Stations . | . . . Recycling Units 2 | . 2 . Scanalyzers . | . . . Garrison Access . | . . . Total Hacks 19 | . 19 . Successful 9 | . 9 . Failed 10 | . 10 . Catastrophic 3 | . 3 . Database Lockouts . | . . . Manual 5 | . 5 . Terminals 15 | . 15 . Fabricators . | . . . Repair Stations . | . . . Recycling Units 4 | . 4 . Scanalyzers . | . . . Garrison Access . | . . . Terminal Hacks 6 | . 6 . Prototype ID Bank 2 | . 2 . Terminal Index 1 | . 1 . Unreport Threat 1 | . 1 . Hauler Manifests 1 | . 1 . Registered Components 1 | . 1 . Fabricator Hacks . | . . . Repair Station Hacks . | . . . Recycling Unit Hacks 3 | . 3 . Report Inventory 1 | . 1 . Retrieve Components 2 | . 2 . Scanalyzer . | . . . Garrison Access Hacks . | . . . Unauthorized Hacks . | . . . Terminals . | . . . Fabricators . | . . . Repair Stations . | . . . Recycling Units . | . . . Scanalyzers . | . . . Garrison Access . | . . . Data Cores Recovered . | . . . Used . | . . . Hacking Detections 7 | . 7 . Full Trace Events . | . . . Feedback Events . | . . . Feedback Blocked . | . . . Robot Schematics Acquired . | . . . Robots Built . | . . . Authchips . | . . . Time . | . . . Total Robot Build Rating . | . . . Part Schematics Acquired . | . . . Parts Built . | . . . Authchips . | . . . Time . | . . . Total Part Build Rating . | . . . Parts Repaired . | . . . Time . | . . . Parts Recycled . | . . . Recycled Matter . | . . . Retrieved Matter . | . . . Retrieved Components 16 | . 16 . Parts Scanalyzed . | . . . Part Schematics Acquired . | . . . Parts Damaged . | . . . Bothacking | -11 -10 -10 ------------ Run | Yrd Mat Sub Used RIF Installer . | . . . Robots Hacked . | . . . Non-combat . | . . . Combat . | . . . Robot Hacks Applied . | . . . Relay Couplers Released . | . . . Fabnet Peak Effective % . | . . . Robots Rewired . | . . . Allies Hacked . | . . . Hacks Repelled . | . . . Allies | -11 -10 -10 -------- Run | Yrd Mat Sub Total Allies . | . . . Largest Group . | . . . Highest-Rated Group . | . . . Highest-Rated Ally . | . . . Total Orders . | . . . Ally Attacks . | . . . Total Damage . | . . . Kills . | . . . Allies Corrupted . | . . . Allies Melted . | . . . Intel | -11 -10 -10 ------- Run | Yrd Mat Sub Robot Analysis Total . | . . . Derelict Logs Recovered . | . . . Drone Launches . | . . . Drone Recoveries . | . . . Exploration | -11 -10 -10 ------------- Run | Yrd Mat Sub Turns Passed 1976 | 69 1138 769 Spaces Moved 1076 | 52 726 298 Core 8 | 8 . . Treads 228 | . . 228 Legs 231 | 44 187 . Wheels 609 | . 539 70 Hover . | . . . Flight . | . . . Fastest Speed 50 | 50 120 120 Average Speed 144 | 110 120 211 Slowest Speed 240 | 120 120 240 Overloaded Moves . | . . . Propulsion Burnouts . | . . . Robots Hopped . | . . . Cave-ins Triggered . | . . . Exploration Rate (%) 39 | 4 96 19 Regions Visited 2 Branch Regions 1 Pre-discovered Areas . | . . . Known Exits Taken 1 | . 1 . Unknown Exits Taken 1 | 1 . . Scrap Searched 2 | . . 2 Spaces Dug . | . . . Terrain Destroyed . | . . . Melee . | . . . Projectile . | . . . AOE . | . . . Terrain Rammed . | . . . Walls Destroyed . | . . . Machines Disabled . | . . . Actions | -11 -10 -10 --------- Run | Yrd Mat Sub Total 1270 | 60 845 365 Wait 8 | . 7 1 Move 1074 | 51 725 298 Hop . | . . . Pick Up 17 | 3 9 5 Fast Attach 10 | 6 3 1 Attach 7 | . 1 6 Detach 4 | . 2 2 Swap 13 | . 12 1 Drop 11 | . 11 . Fire 126 | . 75 51 Melee . | . . . Ram . | . . . Kick . | . . . Crush . | . . . Escape Stasis . | . . . Rewire . | . . . Trap . | . . . Miscellaneous . | . . . Route ------- -11/Scrapyard -10/Materials (discovered 5 exits: [*Mat x3] / [*Min] / *Sub) -10/Subcaves (discovered 1 exit: [*Mat]) History --------- Turn | Location | Event 12 | -11/Scrapyard | Discovered new exit (range 16) 70 | -11/Scrapyard | Entered Materials 306 | -10/Materials | Build established: Mutant 532 | -10/Materials | Discovered new exit (range 5) 598 | -10/Materials | Discovered new exit (range 6) 1036 | -10/Materials | Discovered new exit (range 3) 1076 | -10/Materials | Discovered new exit (range 5) 1082 | -10/Materials | Identified exit to Subcaves 1127 | -10/Materials | Discovered new exit (range 12) 1208 | -10/Materials | Entered Subcaves 1282 | -10/Subcaves | Discovered new exit (range 14) 1931 | -10/Subcaves | Core integrity fell below 50% 1951 | -10/Subcaves | Core integrity fell below 20% 1955 | -10/Subcaves | Lost 4 parts (1p1n2w) 1977 | -10/Subcaves | Destroyed by W2-MHS(R) with Subdweller Laser Last Messages --------------- 01336_ Acquired Scrap Shield. 01341_ Acquired Scrap Shield Fragment. 01353_ Searching scrap... 01353_ Found Barrage Gun. 01353_ Found Shrapnel Trap. 01353_ Found 13 Matter. 01359_ Acquired Barrage Gun. 01588_ Searching scrap... 01588_ Found Battle Cannon. 01588_ Found 15 Matter. 01594_ Acquired Battle Cannon. 01605_ Acquired 10 matter. 01779_ AI-59C(z): "She is not going to be happy we haven't found any suitable candidates yet." 01920_ Lgt. Ion Engine destroyed. 01922_ Beam Rifle destroyed. 01924_ Lgt. Treads destroyed. 01930_ AL-DUV(R) destroyed. 01935_ Subatomizers dissect the Sub. Laser. 01971_ Beam Rifle destroyed. Map ----- +----------------------------------------------------+ | ?????????????????????????????????????????????????? | | ?????????????????????????????????????????????????? | | ?????????????????????????????????????????????????? | | ?????????????????????????????????????????????????? | | ?????????????????????????????????????????????????? | | ?????????????????????????????????????????????????? | | ?????????????????????????????????????????????????? | | ?????????????????????????????????????????????????? | | ?????????????????????????????????????????????????? | | ?????????????????????????????????????????????????? | | ???????????????????????????##????????????????????? | | ???????????????????????????# ##??????????????????? | | ???????????????????????????# ??????????????????? | | ???????????????????????????# ??????????????????? | | ??????????????????????###??# ??????????????????? | | ?????????????????????## ### ??????????????????? | | ???????????????????### #??????????????????? | | ??????????????????# ####???????????????? | | ???????????????????? ##??????????????? | | ??????????????????????? ###????????????? | | ????????????????###?#??????# #????????????? | | ????????????????# ????## ###??????????? | | ???????????????? # ???## ##?????????? | | ????????????????? ???# ##????????? | | ?????????????????# ?## ## ##???????? | | ?????????????????# ?#@ ### #???????? | | ???????????????? ?## ### #???????? | | ???????????????? """ #?## # ####???????? | | ??????????????# " " "??##R ## #??????????? | | ?????????????## """ ?### # #??????????? | | ?????????????? ## # #?????? ?? | | ?????????????# """" [%"""""# ##?????? ?? | | ????????????? " " !=# #### #??????? ?? | | ????????????? "##" #####??### #??####? ?? | | ??????????????? #????#" ???????### #?## ## ??? | | ?????????????????????# ????????# #### ??? | | ?????????????????????""????###?# ### #??? | | ????????????????????# ????##"### ##? ##?? | | ????????????????????# ???##"""## #??? #?? | | ????????????????????#????#""""" #???? #??? | | ?????????????????????????# ##???# ##?? | | ?????????????????????????## ##?## #?? | | ??????????????????????????## ### #?? | | ???????????????????????????## # #???# | | ???????????????????????????# #### ##### | | ???????????????????????????#### #?# | | ??????????????????????????????##### | | ???????????????????????????????### | | ???????????????????????????????# ###### | | ???????????????????????????????#### ##????## | +----------------------------------------------------+ Best States ------------- Heat Dissipation 35 Energy Generation 10 Energy Capacity 250 Matter Stores 300 Matter Capacity 300 Sight Range 16 Terrain Scan Density 10 Evasion (%) 55 Recoil Reduction 1 Item Schematics ----------------- None Robot Schematics ------------------ None Fabricated ------------ Nothing Alien Tech Used ----------------- None Achievements -------------- None Challenges ------------ None Game ------ Seed ChromaticFlakSubcomponent Manual? 0 Play Time 00:21:53 Cumulative 141.7 hours Start 2024.07.24 @ 12:06:01 End 2024.07.24 @ 12:25:38 Sessions 1 Manual Loads 0 Difficulty Rogue Special Mode None Game No. 43 Rogue 43 Adventurer 0 Explorer 0 Win Type - Total 1 Types 1/0/0/0/0/0/0/0/0 Lore% 55 Gallery% 62 Achievement% 46 Wizard Run 0 Options --------- Layout 0 ASCII 0 Keyboard 1 Movement Numpad Keybinds 0 Fullscreen 1 Font 18/X11Bold Map View 76x50 Zoom Use 0% Tactical HUD 1 Map Filters NONE Filters NONE Steam 1 RUN: 1d781be7-88dc-403f-a56a-6843baf4498b